bitfinex-derivatives/quotes_BNBF0:USTF0_20250630
["timestamp","ask_amount","ask_price","bid_price","bid_amount"]
[1751303851635,3.78515061,659.17,657.7,1.13249053]
[1751303851834,3.78515061,659.17,657.71,1.13249053]
[1751303852034,3.78515061,659.17,657.72,1.13249053]
[1751303852337,3.78515061,659.16,657.73,1.13249053]
[1751303852533,3.78515061,659.16,657.74,1.13249053]
[1751303852837,3.78515061,659.16,657.7,2.345]
[1751303853033,3.78515061,659.16,657.71,1.12998702]
[1751303853241,3.78515061,659.16,657.72,1.12998702]
[1751303853434,3.78515061,659.16,657.73,1.12998702]
[1751303853738,3.78515061,659.15,657.74,1.12998702]
[1751303853939,3.78515061,659.15,657.75,1.12998702]
[1751303854234,3.78515061,659.15,657.7,2.345]
[1751303854440,3.78515061,659.15,657.71,1.13000086]
[1751303854639,3.78515061,659.15,657.72,1.13000086]
[1751303854935,3.78515061,659.15,657.7,2.345]
[1751303854936,3.78515061,659.15,657.73,1.13000086]
[1751303855134,3.78515061,659.15,657.74,1.13000086]
[1751303855335,3.78515061,659.21,657.75,1.13000086]
[1751303855534,3.78515061,659.21,657.76,1.13000086]
[1751303855733,3.78515061,659.21,657.77,1.13000086]
[1751303855941,3.78515061,659.2,657.78,1.13000086]
[1751303856138,3.78515061,659.2,657.79,1.13000086]
[1751303856339,3.78515061,659.2,657.8,1.13000086]
[1751303856539,3.78515061,659.2,657.7,2.345]
[1751303856738,3.78515061,659.2,657.71,1.12970765]
[1751303856939,3.78515061,659.2,657.72,1.12970765]
[1751303857136,3.78515061,659.2,657.73,1.12970765]
[1751303857438,3.78515061,659.2,657.74,1.12970765]
[1751303857736,0.26440153,658.84,657.75,1.12970765]
[1751303857937,0.26440153,658.84,657.76,1.12970765]
[1751303858141,0.26440153,658.84,657.77,1.12970765]
[1751303858342,0.26440153,658.84,657.78,1.12970765]
[1751303858538,0.26440153,658.84,657.79,1.12970765]
[1751303858738,0.26440153,658.84,657.7,2.345]
[1751303859042,0.26440153,658.84,657.71,1.12969654]
[1751303859342,0.26440153,658.84,657.72,1.12969654]
[1751303859542,0.26440153,658.84,657.73,1.12969654]
[1751303859837,0.26440153,658.84,657.74,1.12969654]
[1751303860038,0.26440153,658.84,657.75,1.12969654]
[1751303860339,0.26440153,658.84,657.76,1.12969654]
[1751303860539,0.26440153,658.84,657.77,1.12969654]
[1751303860739,0.26440153,658.84,657.78,1.12969654]
[1751303861043,0.26440153,658.84,657.79,1.12969654]
[1751303861240,0.26440153,658.84,657.8,1.12969654]
[1751303861545,0.26440153,658.84,657.81,1.12969654]
[1751303861739,0.26440153,658.84,657.82,1.12969654]
[1751303861943,0.26440153,658.84,657.71,1.13187225]
[1751303861944,0.26440153,658.84,657.83,1.12969654]
[1751303862145,0.26440153,658.84,657.84,1.12969654]
[1751303862343,0.26440153,658.84,657.85,1.12969654]
[1751303862543,0.26440153,658.84,657.86,1.12969654]
[1751303862744,0.26440153,658.84,657.87,1.12969654]
[1751303862947,0.26440153,658.84,657.88,1.12969654]
[1751303863244,0.26440153,658.84,657.89,1.12969654]
[1751303863545,0.26440153,658.84,657.9,1.12969654]
[1751303863747,0.26440153,658.84,657.91,1.12969654]
[1751303863947,0.26440153,658.84,657.7,2.345]
[1751303864147,0.26440153,658.84,657.71,1.12993722]
[1751303864345,0.26440153,658.84,657.72,1.12993722]
[1751303864548,0.26440153,658.84,657.73,1.12993722]
[1751303864844,0.26440153,658.84,657.74,1.12993722]
[1751303865145,0.26440153,658.84,657.75,1.12993722]
[1751303865348,0.26440153,658.84,657.76,1.12993722]
[1751303865644,0.26440153,658.84,657.77,1.12993722]
[1751303865850,0.26440153,658.84,657.78,1.12993722]
[1751303866046,0.26440153,658.84,657.79,1.12993722]
[1751303866249,0.26440153,658.84,657.8,1.12993722]
[1751303866450,0.26440153,658.84,657.81,1.12993722]
[1751303866651,0.26440153,658.84,657.82,1.12993722]
[1751303866847,0.26440153,658.84,657.83,1.12993722]
[1751303867151,0.26440153,658.84,657.84,1.12993722]
[1751303867352,0.26440153,658.84,657.85,1.12993722]
[1751303867651,0.26440153,658.84,657.86,1.12993722]
[1751303867947,0.26440153,658.84,657.65,1.13187225]
[1751303867948,0.26440153,658.84,657.87,1.12993722]
[1751303868146,0.26440153,658.84,657.88,1.12993722]
[1751303868350,0.26440153,658.84,657.89,1.12993722]
[1751303868551,0.26440153,658.84,657.9,1.12993722]
[1751303868748,0.26440153,658.84,657.91,1.12993722]
[1751303869048,0.26440153,658.84,657.92,1.12993722]
[1751303869252,0.26440153,658.84,657.93,1.12993722]
[1751303869447,0.26440153,658.84,657.94,1.12993722]
[1751303869656,0.26440153,658.84,657.95,1.12993722]
[1751303869856,0.26440153,658.84,657.96,1.12993722]
[1751303870055,0.26440153,658.84,657.97,1.12993722]
[1751303870254,0.26440153,658.84,657.98,1.12993722]
[1751303870454,0.26440153,658.84,657.99,1.12993722]
[1751303870654,0.26440153,658.84,658.0,1.12993722]
[1751303870854,0.26440153,658.84,658.01,1.12993722]
[1751303871056,0.26440153,658.84,658.02,1.12993722]
[1751303871352,0.26440153,658.84,657.97,2.562]
[1751303871554,0.26440153,658.84,657.98,1.12994373]
[1751303871757,0.26440153,658.84,657.99,1.12994373]
[1751303871955,0.26440153,658.84,658.0,1.12994373]
[1751303872156,0.26440153,658.84,658.01,1.12994373]
[1751303872354,0.26440153,658.84,658.02,1.12994373]
[1751303872557,0.26440153,658.84,658.03,1.12994373]
[1751303872853,0.26440153,658.84,658.04,1.12994373]
[1751303873056,0.26440153,658.84,658.05,1.12994373]
[1751303873259,0.26440153,658.84,658.06,1.12994373]
[1751303873558,0.26440153,658.84,658.07,1.12994373]
[1751303873856,0.26440153,658.84,658.08,1.12994373]
[1751303874056,0.26440153,658.84,658.09,1.12994373]
[1751303874258,0.26440153,658.84,658.1,1.12994373]
[1751303874555,0.26440153,658.84,658.11,1.12994373]
[1751303874756,0.26440153,658.84,658.12,1.12994373]
[1751303875059,0.26440153,658.84,658.13,1.12994373]
[1751303875354,0.26440153,658.84,658.14,1.12994373]
[1751303875554,0.26440153,658.84,658.15,1.12994373]
[1751303875759,0.26440153,658.84,658.16,1.12994373]
[1751303876062,0.26440153,658.84,658.17,1.12994373]
[1751303876257,0.26440153,658.84,657.97,2.562]
[1751303876459,0.26440153,658.84,657.98,1.12717894]
[1751303876755,0.26440153,658.84,657.97,2.562]
[1751303876756,0.26440153,658.84,657.99,1.12717894]
[1751303877059,0.26440153,658.84,658.0,1.12717894]
[1751303877358,0.26440153,658.84,658.01,1.12717894]
[1751303877559,0.26440153,658.84,658.02,1.12717894]
[1751303877754,0.26440153,658.84,658.03,1.12717894]
[1751303877956,0.26440153,658.84,658.04,1.12717894]
[1751303878154,0.26440153,658.84,658.05,1.12717894]
[1751303878359,0.26440153,658.84,658.06,1.12717894]
[1751303878560,0.26440153,658.84,658.07,1.12717894]
[1751303878861,0.26440153,658.84,658.08,1.12717894]
[1751303879060,0.26440153,658.84,658.09,1.12717894]
[1751303879257,0.26440153,658.84,658.1,1.12717894]
[1751303879562,0.26440153,658.84,658.11,1.12717894]
[1751303879760,0.26440153,658.84,658.12,1.12717894]
[1751303879956,0.26440153,658.84,658.13,1.12717894]
[1751303880257,0.26440153,658.84,658.14,1.12717894]
[1751303880556,0.26440153,658.84,658.15,1.12717894]
[1751303880756,0.26440153,658.84,658.16,1.12717894]
[1751303880962,0.26440153,658.84,658.01,2.742]
[1751303881157,0.26440153,658.84,658.02,1.12525776]
[1751303881460,0.26440153,658.84,658.03,1.12525776]
[1751303881757,0.26440153,658.84,658.04,1.12525776]
[1751303881956,0.26440153,658.84,658.05,1.12525776]
[1751303882160,0.26440153,658.84,658.06,1.12525776]
[1751303882361,0.26440153,658.84,658.07,1.12525776]
[1751303882555,0.26440153,658.84,658.08,1.12525776]
[1751303882759,0.26440153,658.84,658.09,1.12525776]
[1751303883062,0.26440153,658.84,658.1,1.12525776]
[1751303883262,0.26440153,658.84,658.11,1.12525776]
[1751303883563,0.26440153,658.84,658.12,1.12525776]
[1751303883756,0.26440153,658.84,658.13,1.12525776]
[1751303883963,0.26440153,658.84,658.14,1.12525776]
[1751303884163,0.26440153,658.84,658.15,1.12525776]
[1751303884459,0.26440153,658.84,658.16,1.12525776]
[1751303884658,0.26440153,658.84,658.01,2.742]
[1751303884856,0.26440153,658.84,658.02,1.1240816]
[1751303885058,0.26440153,658.84,658.01,2.742]
[1751303885059,0.26440153,658.84,658.03,1.1240816]
[1751303885262,0.26440153,658.84,658.04,1.1240816]
[1751303885465,0.26440153,658.84,658.01,2.742]
[1751303885466,0.26440153,658.84,658.05,1.1240816]
[1751303885663,0.26440153,658.84,658.06,1.1240816]
[1751303885864,0.26440153,658.84,658.07,1.1240816]
[1751303886066,0.26440153,658.84,658.08,1.1240816]
[1751303886266,0.26440153,658.84,658.09,1.1240816]
[1751303886466,0.26440153,658.84,658.1,1.1240816]
[1751303886667,0.26440153,658.84,658.11,1.1240816]
[1751303886868,0.26440153,658.84,658.12,1.1240816]
[1751303887069,0.26440153,658.84,658.13,1.1240816]
[1751303887274,0.26440153,658.84,658.14,1.1240816]
[1751303887568,0.26440153,658.84,658.15,1.1240816]
[1751303887767,0.26440153,658.84,658.01,2.742]
[1751303887768,3.78515061,659.67,658.16,1.1240816]
[1751303887967,3.78515061,659.67,658.17,1.1240816]
[1751303888168,0.26421784,658.91,658.18,1.1240816]
[1751303888367,3.78515061,659.83,658.19,1.1231964]
[1751303888669,0.26421383,659.3,658.01,2.742]
[1751303888872,3.78515061,659.83,658.02,1.68930982]
[1751303889074,3.78515061,659.83,658.03,1.68930982]
[1751303889274,3.78515061,659.83,658.04,1.68930982]
[1751303889569,3.78515061,659.83,658.02,1.879]
[1751303889570,3.78515061,659.9,658.05,1.68930982]
[1751303889773,3.78515061,659.9,658.06,1.68930982]
[1751303889972,3.78515061,659.9,658.07,1.68930982]
[1751303890173,0.26419076,659.44,658.08,1.68930982]
[1751303890374,0.26419076,659.44,658.09,1.68930982]
[1751303890573,0.26419076,659.44,658.1,1.12319472]
[1751303890870,0.26419076,659.44,658.11,1.12319472]
[1751303891170,0.26419076,659.44,658.12,1.12319472]
[1751303891472,0.26419076,659.44,658.13,1.12319472]
[1751303891770,0.26419076,659.44,658.14,1.12319472]
[1751303892071,0.26419076,659.44,658.15,1.12319472]
[1751303892271,0.26419076,659.44,658.16,1.12319472]
[1751303892471,0.26419076,659.44,658.17,1.12319472]
[1751303892674,0.26419076,659.44,658.18,1.12319472]
[1751303892970,0.26419076,659.44,658.19,1.12319472]
[1751303893175,0.26419076,659.44,658.2,1.12319472]
[1751303893375,0.26419076,659.44,658.21,1.12319472]
[1751303893675,0.26419076,659.44,658.22,1.12319472]
[1751303893871,0.26419076,659.44,658.23,1.12319472]
[1751303894072,0.26419076,659.44,658.24,1.12319472]
[1751303894272,0.26419076,659.44,658.25,1.12319472]
[1751303894478,0.26419076,659.44,658.26,1.12319472]
[1751303894673,0.26419076,659.44,658.27,1.12319472]
[1751303894870,0.26419076,659.44,658.28,1.12319472]
[1751303895173,0.26419076,659.44,658.29,1.12319472]
[1751303895373,0.26419076,659.44,658.3,1.12319472]
[1751303895573,0.26419076,659.44,658.31,1.12319472]
[1751303895776,0.26419076,659.44,658.32,1.12319472]
[1751303895977,0.26419076,659.44,658.33,1.12319472]
[1751303896177,0.26419076,659.44,658.34,1.12319472]
[1751303896376,0.26419076,659.44,658.35,1.12319472]
[1751303896578,0.26419076,659.44,658.36,1.12319472]
[1751303896777,0.26419076,659.44,658.37,1.12319472]
[1751303897072,0.26419076,659.44,658.38,1.12319472]
[1751303897374,0.26419076,659.44,658.39,1.12319472]
[1751303897578,0.26419076,659.44,658.4,1.12319472]
[1751303897777,0.26419076,659.44,658.41,1.12319472]
[1751303897977,0.26419076,659.44,658.42,1.12319472]
[1751303898274,0.26419076,659.44,658.43,1.12319472]
[1751303898474,0.26419076,659.44,658.44,1.12319472]
[1751303898674,0.26419076,659.44,658.45,1.12319472]
[1751303898977,0.26419076,659.44,658.21,1.13187225]
[1751303899278,0.26419076,659.44,658.22,1.11848053]
[1751303899577,0.26419076,659.44,658.23,1.11848053]
[1751303899777,0.26419076,659.44,658.24,1.11848053]
[1751303899978,0.26419076,659.44,658.25,1.11848053]
[1751303900275,0.26419076,659.44,658.26,1.11848053]
[1751303900474,0.26419076,659.44,658.27,1.11848053]
[1751303900775,0.26419076,659.44,658.28,1.11848053]
[1751303900974,0.26419076,659.44,658.29,1.11848053]
[1751303901177,0.26419076,659.44,658.3,1.11848053]
[1751303901474,0.26419076,659.44,658.31,1.11848053]
[1751303901674,0.26419076,659.44,658.32,1.11848053]
[1751303901877,0.26419076,659.44,658.33,1.11848053]
[1751303902077,0.26419076,659.44,658.34,1.11848053]
[1751303902274,0.26419076,659.44,658.35,1.11848053]
[1751303902478,0.26419076,659.44,658.36,1.11848053]
[1751303902678,0.26419076,659.44,658.37,1.11848053]
[1751303902879,0.26419076,659.44,658.38,1.11848053]
[1751303903075,0.26419076,659.44,658.39,1.11848053]
[1751303903275,0.26419076,659.44,658.4,1.11848053]
[1751303903473,0.26419076,659.44,658.41,1.11848053]
[1751303903673,0.26419076,659.44,658.42,1.11848053]
[1751303903877,0.26419076,659.44,658.43,1.11848053]
[1751303904080,0.26419076,659.44,658.44,1.11848053]
[1751303904379,0.26419076,659.44,658.45,1.11848053]
[1751303904579,0.26419076,659.44,658.46,1.11848053]
[1751303904879,0.26419076,659.44,658.47,1.11848053]
[1751303905075,0.26419076,659.44,658.48,1.11848053]
[1751303905280,0.26419076,659.44,658.18,1.13187225]
[1751303905580,0.26419076,659.44,658.19,1.11518313]
[1751303905780,0.26419076,659.44,658.2,1.11518313]
[1751303906080,0.26419076,659.44,658.21,1.11518313]
[1751303906376,0.26419076,659.44,658.22,1.11518313]
[1751303906581,0.26419076,659.44,658.23,1.11518313]
[1751303906780,0.26419076,659.44,658.24,1.11518313]
[1751303907077,0.26419076,659.44,658.25,1.11518313]
[1751303907281,0.26419076,659.44,658.26,1.11518313]
[1751303907481,0.26419076,659.44,658.27,1.11518313]
[1751303907682,0.26419076,659.44,658.28,1.11518313]
[1751303907880,0.26419076,659.44,658.29,1.11518313]
[1751303908081,0.26419076,659.44,658.3,1.11518313]
[1751303908282,0.26419076,659.44,658.31,1.11518313]
[1751303908584,0.26419076,659.44,658.32,1.11518313]
[1751303908878,0.26419076,659.44,658.33,1.11518313]
[1751303909078,0.26419076,659.44,658.34,1.11518313]
[1751303909279,0.26419076,659.44,658.35,1.11518313]
[1751303909583,0.26419076,659.44,658.36,1.11518313]
[1751303909882,0.26419076,659.44,658.37,1.11518313]
[1751303910178,0.26419076,659.44,658.38,1.11518313]
[1751303910377,0.26419076,659.44,658.39,1.11518313]
[1751303910581,0.26419076,659.44,658.4,1.11518313]
[1751303910882,0.26419076,659.44,658.41,1.11518313]
[1751303911080,0.26419076,659.44,658.42,1.11518313]
[1751303911383,0.26419076,659.44,658.43,1.11518313]
[1751303911584,0.26419076,659.44,658.19,1.13187225]
[1751303911781,0.26419076,659.44,658.2,1.11490228]
[1751303911985,0.26419076,659.44,658.21,1.11490228]
[1751303912284,0.26419076,659.44,658.22,1.11490228]
[1751303912485,0.26419076,659.44,658.23,1.11490228]
[1751303912682,0.26419076,659.44,658.24,1.11490228]
[1751303912886,0.26419076,659.44,658.25,1.11490228]
[1751303913083,0.26419076,659.44,658.26,1.11490228]
[1751303913381,0.26419076,659.44,658.27,1.11490228]
[1751303913586,0.26419076,659.44,658.28,1.11490228]
[1751303913790,0.26419076,659.44,658.29,1.11490228]
[1751303913981,0.26419076,659.44,658.3,1.11490228]
[1751303914188,0.26419076,659.44,658.31,1.11490228]
[1751303914387,0.26419076,659.44,658.32,1.11490228]
[1751303914588,0.26419076,659.44,658.33,1.11490228]
[1751303914788,0.26419076,659.44,658.34,1.11490228]
[1751303915083,0.26419076,659.44,658.35,1.11490228]
[1751303915289,0.26419076,659.44,658.36,1.11490228]
[1751303915588,0.26419076,659.44,658.37,1.11490228]
[1751303915787,0.26419076,659.44,658.38,1.11490228]
[1751303915988,0.26419076,659.44,658.39,1.11490228]
[1751303916189,0.26419076,659.44,658.4,1.11490228]
[1751303916486,0.26419076,659.44,658.41,1.11490228]
[1751303916685,0.26419076,659.44,658.42,1.11490228]
[1751303916887,0.26419076,659.44,658.43,1.11490228]
[1751303917088,0.26419076,659.44,658.26,3.0]
[1751303917287,0.26419076,659.44,658.27,1.1154121]
[1751303917485,0.26419076,659.44,658.28,1.1154121]
[1751303917689,0.26419076,659.44,658.29,1.1154121]
[1751303917990,0.26419076,659.44,658.3,1.1154121]
[1751303918290,0.26419076,659.44,658.31,1.1154121]
[1751303918488,0.26419076,659.44,658.32,1.1154121]
[1751303918790,0.26419076,659.44,658.33,1.1154121]
[1751303918987,0.26419076,659.44,658.26,3.0]
[1751303918988,0.26419076,659.44,658.34,1.1154121]
[1751303919187,0.26419076,659.44,658.35,1.1154121]
[1751303919387,0.26419076,659.44,658.36,1.1154121]
[1751303919592,0.26419076,659.44,658.37,1.1154121]
[1751303919788,0.26419076,659.44,658.38,1.1154121]
[1751303919993,0.26419076,659.44,658.39,1.1154121]
[1751303920195,0.26419076,659.44,658.4,1.1154121]
[1751303920394,0.26419076,659.44,658.41,1.1154121]
[1751303920593,0.26419076,659.44,658.42,1.1154121]
[1751303920893,0.26419076,659.44,658.26,3.0]
[1751303921088,0.26419076,659.44,658.27,1.11594533]
[1751303921292,0.26419076,659.44,658.28,1.11594533]
[1751303921489,0.26419076,659.44,658.29,1.11594533]
[1751303921693,0.26419076,659.44,658.3,1.11594533]
[1751303921993,0.26419076,659.44,658.31,1.11594533]
[1751303922191,0.26419076,659.44,658.32,1.11594533]
[1751303922488,0.26419076,659.44,658.26,3.0]
[1751303922489,0.26419076,659.44,658.33,1.11594533]
[1751303922690,0.26419076,659.44,658.34,1.11594533]
[1751303922990,0.26419076,659.44,658.35,1.11594533]
[1751303923291,0.26419076,659.44,658.36,1.11594533]
[1751303923492,0.26419076,659.44,658.37,1.11594533]
[1751303923790,0.26419076,659.44,658.26,3.0]
[1751303923791,0.26419076,659.44,658.38,1.11594533]
[1751303923995,0.26419076,659.44,658.39,1.11594533]
[1751303924194,0.26419076,659.44,658.4,1.11594533]
[1751303924494,0.26419076,659.44,658.41,1.11699485]
[1751303924691,0.26419076,659.44,658.42,1.11699485]
[1751303924990,0.26419076,659.44,658.26,3.0]
[1751303925195,0.26419076,659.44,658.27,1.11694969]
[1751303925394,0.26419076,659.44,658.28,1.11694969]
[1751303925594,0.26419076,659.44,658.29,1.11694969]
[1751303925895,0.26419076,659.44,658.3,1.11694969]
[1751303926095,0.26419076,659.44,658.31,1.11694969]
[1751303926395,0.26419076,659.44,658.32,1.11694969]
[1751303926593,0.26419076,659.44,658.33,1.11694969]
[1751303926795,0.26419076,659.44,658.34,1.11694969]
[1751303927092,0.26419076,659.44,658.35,1.11694969]
[1751303927297,0.26419076,659.44,658.36,1.11694969]
[1751303927497,0.26419076,659.44,658.37,1.11694969]
[1751303927691,0.26419076,659.44,658.38,1.11694969]
[1751303927894,0.26419076,659.44,658.39,1.11694969]
[1751303928096,0.26419076,659.44,658.35,1.937]
[1751303928097,0.26419076,659.44,658.4,1.11694969]
[1751303928294,0.26419076,659.44,658.35,1.937]
[1751303928495,0.26419076,659.44,658.36,1.11856471]
[1751303928694,0.26419076,659.44,658.37,1.11856471]
[1751303928997,0.26419076,659.44,658.38,1.11856471]
[1751303929297,0.26419076,659.44,658.39,1.11856471]
[1751303929596,0.26419076,659.44,658.4,1.11856471]
[1751303929797,0.26419076,659.44,658.41,1.11856471]
[1751303929993,0.26419076,659.44,658.42,1.11856471]
[1751303930194,0.26419076,659.44,658.43,1.11856471]
[1751303930494,0.26419076,659.44,658.44,1.11856471]
[1751303930697,0.26419076,659.44,658.45,1.11856471]
[1751303930992,0.26419076,659.44,658.46,1.11856471]
[1751303931197,0.26419076,659.44,658.47,1.11856471]
[1751303931497,0.26419076,659.44,658.48,1.11856471]
[1751303931797,0.26419076,659.44,658.35,1.937]
[1751303931993,0.26419076,659.44,658.36,1.11938491]
[1751303932193,0.26419076,659.44,658.37,1.11938491]
[1751303932397,0.26419076,659.44,658.38,1.11938491]
[1751303932593,0.26419076,659.44,658.39,1.11938491]
[1751303932793,0.26419076,659.44,658.4,1.11938491]
[1751303933096,0.26419076,659.44,658.41,1.11938491]
[1751303933297,0.26419076,659.44,658.42,1.11938491]
[1751303933494,0.26419076,659.44,658.43,1.11938491]
[1751303933692,0.26419076,659.44,658.44,1.11938491]
[1751303933893,0.26419076,659.44,658.45,1.11938491]
[1751303934095,0.26419076,659.44,658.35,1.937]
[1751303934294,0.26419076,659.44,658.36,1.11998832]
[1751303934496,0.26419076,659.44,658.37,1.11998832]
[1751303934695,0.26419076,659.44,658.38,1.11998832]
[1751303934894,0.26419076,659.44,658.39,1.11998832]
[1751303935098,0.26419076,659.44,658.4,1.11998832]
[1751303935399,0.26419076,659.44,658.41,1.11998832]
[1751303935596,0.26419076,659.44,658.35,1.937]
[1751303935796,0.26419076,659.44,658.36,1.12052853]
[1751303935997,0.26419076,659.44,658.35,1.937]
[1751303935998,0.26419076,659.44,658.37,1.12052853]
[1751303936196,0.26419076,659.44,658.38,1.12052853]
[1751303936402,0.26419076,659.44,658.39,1.12052853]
[1751303936698,0.26419076,659.44,658.4,1.12052853]
[1751303936902,0.26419076,659.44,658.35,1.937]
[1751303937199,0.26419076,659.44,658.36,1.12070275]
[1751303937402,0.26419076,659.44,658.37,1.12070275]
[1751303937599,0.26419076,659.44,658.38,1.12070275]
[1751303937799,0.26419076,659.44,658.39,1.12070275]
[1751303938098,0.26419076,659.44,658.4,1.12070275]
[1751303938300,0.26419076,659.44,658.41,1.12115021]
[1751303938602,0.26419076,659.44,658.35,1.937]
[1751303938802,0.26419076,659.44,658.36,1.12115021]
[1751303939004,0.26419076,659.44,658.37,1.12115021]
[1751303939205,0.26419076,659.44,658.38,1.12115021]
[1751303939407,3.78515061,659.43,658.35,1.937]
[1751303939601,3.78515061,659.43,658.36,1.12132077]
[1751303939807,3.78515061,659.42,658.35,1.937]
[1751303940102,3.78515061,659.42,658.36,1.12168619]
[1751303940303,3.78515061,659.42,658.35,1.937]
[1751303940503,3.78515061,659.42,658.36,1.12168568]
[1751303940808,4.04934137,659.44,658.37,1.12184224]
[1751303941002,4.04934137,659.44,658.35,1.937]
[1751303941209,4.04934137,659.44,658.36,1.12184198]
[1751303941406,3.78515061,659.43,658.37,1.12184198]
[1751303941704,3.78515061,659.43,658.35,1.937]
[1751303941913,3.78515061,659.43,658.36,1.12156013]
[1751303942205,3.78515061,659.43,658.37,1.12156013]
[1751303942406,3.78515061,659.43,658.38,1.12173777]
[1751303942606,3.78515061,659.43,658.35,1.937]
[1751303942802,3.78515061,659.43,658.36,1.12163571]
[1751303943005,4.04934137,659.44,658.37,1.12163571]
[1751303943204,4.04934137,659.44,658.35,1.937]
[1751303943408,3.78515061,659.33,658.35,1.937]
[1751303943805,3.78515061,659.33,658.36,2.047]
[1751303944005,3.78515061,659.43,658.36,2.047]
[1751303944604,3.78515061,659.42,658.36,2.047]
[1751303945008,3.78515061,659.41,658.36,2.047]
[1751303945509,0.26419076,659.44,658.36,2.047]
[1751303949310,0.26419076,659.44,658.37,1.12362381]
[1751303949613,0.26419076,659.44,658.38,1.12362381]
[1751303949813,0.26419076,659.44,658.39,1.12362381]
[1751303950011,0.26419076,659.44,658.36,2.047]
[1751303950211,0.26419076,659.44,658.37,1.12396199]
[1751303950411,0.26419076,659.44,658.38,1.12396199]
[1751303950709,0.26419076,659.44,658.39,1.12396199]
[1751303950911,0.26419076,659.44,658.36,2.047]
[1751303951112,0.26419076,659.44,658.37,1.12398059]
[1751303951313,0.26419076,659.44,658.38,1.12398059]
[1751303951514,0.26419076,659.44,658.39,1.12398059]
[1751303951814,0.26419076,659.44,658.4,1.12398059]
[1751303952014,0.26419076,659.44,658.36,2.047]
[1751303952215,0.26419076,659.44,658.37,1.12391267]
[1751303952415,0.26419076,659.44,658.38,1.12391267]
[1751303952714,0.26419076,659.44,658.39,1.12391267]
[1751303952917,0.26419076,659.44,658.36,2.047]
[1751303953115,0.26419076,659.44,658.37,1.12384577]
[1751303953312,0.26419076,659.44,658.38,1.12384577]
[1751303953516,0.26419076,659.44,658.39,1.12384577]
[1751303953717,0.26419076,659.44,658.36,2.047]
[1751303953915,0.26419076,659.44,658.37,1.12377975]
[1751303954116,0.26419076,659.44,658.38,1.12377975]
[1751303954317,0.26419076,659.44,658.39,1.12377975]
[1751303954517,0.26419076,659.44,658.36,2.047]
[1751303954718,0.26419076,659.44,658.37,1.12371752]
[1751303954917,0.26419076,659.44,658.38,1.12371752]
[1751303955217,0.26419076,659.44,658.35,1.937]
[1751303955418,0.26419076,659.44,658.36,1.12368023]
[1751303955616,0.26419076,659.44,658.37,1.12368023]
[1751303955817,0.26419076,659.44,658.38,1.12368023]
[1751303956118,0.26419076,659.44,658.35,1.937]
[1751303956318,0.26419076,659.44,658.36,1.12362518]
[1751303956518,0.26419076,659.44,658.37,1.12362518]
[1751303956720,0.26419076,659.44,658.38,1.12362518]
[1751303957017,0.26419076,659.44,658.35,1.937]
[1751303957221,0.26419076,659.44,658.36,1.12362173]
[1751303957419,0.26419076,659.44,658.37,1.12362173]
[1751303957622,0.26419076,659.44,658.38,1.12362173]
[1751303957923,0.26419076,659.44,658.35,1.937]
[1751303958122,0.26419076,659.44,658.36,1.12358456]
[1751303958321,0.26419076,659.44,658.37,1.12358456]
[1751303958523,0.26419076,659.44,658.38,1.12358456]
[1751303958723,0.26419076,659.44,658.36,2.645]
[1751303959119,0.26419076,659.44,658.37,1.12356942]
[1751303959319,3.78515061,659.46,658.36,2.645]
[1751303959617,3.78515061,659.42,658.36,2.645]
[1751303960823,3.78515061,659.41,658.36,2.645]
[1751303961223,3.78515061,659.44,658.36,2.645]
[1751303961927,3.78515061,659.48,658.36,2.645]
[1751303963224,3.78515061,659.32,658.36,2.645]
[1751303963823,0.26422587,659.09,658.36,2.645]
[1751303969234,0.26422587,659.09,658.37,1.1239643]
[1751303969434,0.26422587,659.09,658.38,1.1239643]
[1751303969634,0.26422587,659.09,658.39,1.1239643]
[1751303969832,0.26422587,659.09,658.36,2.645]
[1751303970032,0.26422587,659.09,658.37,1.12393334]
[1751303970230,0.26422587,659.09,658.38,1.12393334]
[1751303970434,0.26422587,659.09,658.39,1.12393334]
[1751303970631,0.26422587,659.09,658.36,2.645]
[1751303970837,0.26422587,659.09,658.37,1.12391621]
[1751303971034,0.26422587,659.09,658.36,2.645]
[1751303971035,0.26422587,659.09,658.38,1.12391621]
[1751303971236,0.26422587,659.09,658.39,1.12391621]
[1751303971537,0.26422587,659.09,658.36,2.645]
[1751303971732,0.26422587,659.09,658.37,1.12388261]
[1751303971938,0.26422587,659.09,658.36,2.645]
[1751303971939,0.26422587,659.09,658.38,1.12388261]
[1751303972137,0.26422587,659.09,658.39,1.12388261]
[1751303972338,0.26422587,659.09,658.36,2.645]
[1751303972534,0.26422587,659.09,658.37,1.12388442]
[1751303972838,0.26422587,659.09,658.38,1.12388442]
[1751303973137,0.26422587,659.09,658.39,1.12388442]
[1751303973338,0.26422587,659.09,658.36,2.645]
[1751303973637,0.26422587,659.09,658.37,1.12384526]
[1751303973834,0.26422587,659.09,658.38,1.12384526]
[1751303974032,0.26422587,659.09,658.39,1.12384526]
[1751303974236,0.26422587,659.09,658.36,2.645]